{"text_format":"3","workbook":"xlsx","n_sheets":1,"sheets":["PRICING SCHEDULE"],"not_rendered":{"images":1,"defined_names":4},"read":"whole","date_system":"1900"}

{"sheet":"PRICING SCHEDULE","index":0,"n_rows":108,"n_cols":7,"rows_kept":108,"merged":[[11,3,11,5],[13,2,13,6],[32,2,32,6],[36,2,36,6],[54,2,54,6],[66,2,66,6],[71,2,71,6],[81,2,81,6],[86,2,86,6],[90,2,90,6],[94,2,94,6],[96,2,96,6],[104,1,107,1],[104,3,104,4],[105,3,105,4],[106,3,106,4],[107,3,107,4]]}
[null,"SUPPLY CHAIN MANAGEMENT"]
[null,"Pricing schedule"]
["RFB No","RFB 3206-2025"]
["RFB Title","Request for Bid to appoint a service providet to execute the civil & architectural works at SITA Centurion building Technology Laboratory.  "]
["Bidder Name "]
[]
["1. INSTRUCTION FOR COMPLETING THE PRICING SCHEDULE"]
["(a)  Bidder must complete/enter YELLOW cells only"]
["(b)  Unit and Line prices must be VAT EXCLUSIVE and in South African Rand (ZAR) currency."]
["(c) The price must include all cost to deliver the goods or render the service, including all applicable taxes, duty fees, logistics/delivery, storage, labour, overtime and subsistance and travel"]
[]
["Item No","Goods/Service description"]
[null,null,"Unit of measure","Qty ","Unit Price \n(Excl VAT)","Line Price ","Price clarification comment"]
[1,"Demolishing Works",{"$f":"SUM(F15:F32)","v":0}]
["1.1","Remove Existing Birck Walls of Existing Offices","m²",50,0,{"$f":"D15*E15","v":0}]
["1.2","Remove Existing Brick Walls of Toilet 1","m²",40,0,{"$f":"D16*E16","v":0}]
["1.3","Remove Existing Brick Walls of Toilet 2","m²",40,0,{"$f":"D17*E17","v":0}]
["1.4","Remove Existing Brick Walls of Toilet 3","m²",40,0,{"$f":"D18*E18","v":0}]
["1.5","Remove Existing Folding doors & drywall between existing classrooms","m²",15,0,0]
["1.6","Remove Existing Brick Walls of Office","m²",40,0,0]
["1.7","Remove Existing Brick Walls of Kitchen","m²",40,0,0]
["1.8","Remove Existing Floor Tiles in the Kitchen","m²",40,0,0]
["1.9","Remove Existing Brick Walls of Sandpit","m²",40,0,0]
["1.10","Remove Existing Brick Walls of Flowerbed","Each",1,0,0]
["1.11","Remove Existing Entrance – aluminium framing","Each",1,0,0]
["1.12","Remove Existing door & frame","Each",6,0,0]
["1.13","Remove Existing Pavement on Driveway","m²",700,0,0]
["1.14","Taking out and removing old dilapidated suspended ceilings, including grids and prepare to receive new installations","Sum",300,0,0]
["1.15","Removal of old tiles, disconnect and remove old pans, wall cisterns and toilet seats including urinals, flush masters, washbasins, counter tops and mirrors","m²",40,0,0]
["1.16","Existing Main Entrance – Aluminium Door & Frame","m²",10,0,0]
["1.17","Existing plants opposite the main Facilities Entrance","m²",160,0,{"$f":"D31*E31","v":0}]
["1.18","Decomission old Distribution Board","Each",1,0,{"$f":"D32*E32","v":0}]
[2,"New Brick & Partition Works",{"$f":"SUM(F34:F36)","v":0}]
["2.1","Ablution Facilities (Male & Female tiolets)","m²",40,0,{"$f":"D34*E34","v":0}]
["2.2","Tech Lab and Corridor","m²",300,0,{"$f":"D35*E35","v":0}]
["2.3","Supply & Install New Dry Wall Partitions - 90mm thick","m²",80,0,0]
[3,"Ablution Facilities",{"$f":"SUM(F38:F54)","v":0}]
["3,1","Patching and preparing the area to receive new installations","m²",50,0,{"$f":"D38*E38","v":0}]
["3,2","Supply and install new white ceiling tiles (600x600mm) and grids drop of 600mm from the roof","m²",20,0,0]
["3,3","Supply and install white wall mounted toilet pans for wall cistern with its proper toilet seat covers, replace wall plumping pipes up to the connection joints at the back-service entrance (provision of up to 1m piping). ","Each",3,0,0,"specify brand of floating toilet pans"]
["3,4","Supply and install  urinal with its proper wall cistern and automatic flushing system automatically after usage.  ","Each",1,0,0,"specify brand of urinal"]
["3,5","Supplying and installing urinal automatic sanitizer dispenser","Each",1,0,0]
["3,6","Supply and install wall mounted Rolled White Hand Towel Dispenser","Each",3,0,{"$f":"D43*E43","v":0}]
["3,7","Supply and install  soap dispenser with automatic sensor","Each",3,0,{"$f":"D44*E44","v":0}]
["3,8","Supply and install satin wall seat sanitizer dispenser","Each",3,0,0]
["3,9","Supply and install stainless steel jumbo roll round toilet paper dispenser","Each",3,0,0]
["3,10","Supply and install new (600mmx600mmx10mm) thick polished grey porcelain wall tile, laid with a 2mm wide grout joint and inside toilet cubicle walls","m²",40,0,0]
["3,11","Supply and lay new charcoal (600mmx600mmx10mm) thick porcelain floor matt tile, laid with a 2mm wide grout joint","m²",40,0,0]
["3,12","Supply and install new vanity slab made of Caesarstone countertop, also boxing the vanity to cover waste pipes– white shimmer and a mirror measurement must be verified on site","Each",3,0,0]
["3,13","Supply and install new duravit dura-square washbasins with waste outlets and water taps (cobra tap mixers). ","Each",3,0,0,"specify brand of washbasin"]
["3,14","Provide and applying chalk brush enamel paint to toilet cubicle doors (standard door size) ","Each",3,0,0]
["3,15","Supply and install bathroom stall doors for Male and Female","Each",3,0,0]
["3,16","Supply and install main bathroom entrance doors  for Male and Female ablution facilities","Each",2,0,0]
["3,17","Supply and install bathroom explanatory/safety signage - Male and Female","Each",2,0,0]
[4,"Doors to be Supplied & Installed with Frames",{"$f":"SUM(F56:F66)","v":0}]
["4.1","Supply and install ablution entrance doors for Male and Female  (813x2032mm)","Each",2,0,{"$f":"D56*E56","v":0}]
["4.2","Supply and install ablution timber solid cubicle doors for Male and Female  (762x1880mm)","Each",3,0,0]
["4.3","Supply and Install Single Timber Solid Kitchen Door (915x2032 mm)","Each",1,0,0]
["4.4","Supply and Install Custom-made natural anodised single aluminium door frame (900x2100mm) with Aluminium framed clear glazIing to AAAMSA approved specifications - Open Office Area","Each",1,0,0]
["4.5","Supply and Install Custom-made natural anodised double aluminium door frame (1600x2100mm) with Aluminium framed clear glazIing to AAAMSA approved specifications - Main Entrance","Each",1,0,0]
["4.6","Supply and Install 230mm Heavy-duty pressed metal double door frame with single rebate for 230mm wall plastered both sides, complete with three (3) pair of 102mm length steel hinges per door, adjustable c.p. striking plate & rubber buffers painted with high gloss enamel paint. \nthe doors must be a Pair of 762 x 2032mm Class A rated Fire Double Doors - Tech Lab Exit.","Each",1,0,0]
["4.7","Supply and Install Standard aluminium double door frame door for Tech Lab Entrance, complete with grey rubber doorstop gasket for 90mm drywall partitions complete with 1,5 pairs of 100mm long aluminium hinges & adjustable c.p. striking plate. \nSingle door frame to suite (813x2032mm)  Colour: Grey","Each",1,0,0]
["4.8","Supply and Install 230mm Heavy-duty pressed metal single door frame with single rebate for 230mm wall plastered both sides, complete with three (3) pair of 102mm length steel hinges per door, adjustable c.p. striking plate & rubber buffers painted with high gloss enamel paint. (813x2032mm) Class A rated Fire Door - Corridor","Each",1,0,0]
["4.9","Supply and Install 230mm Heavy-duty pressed metal single door frame with single rebate for 230mm wall plastered both sides, complete with three (3) pair of 102mm length steel hinges per door, adjustable c.p. striking plate & rubber buffers painted with high gloss enamel paint. (813x2032mm) Class A rated Fire Door - Server Room","Each",1,0,0]
["4.10","Supply and Install Multi-fold & Stack-Away (5700x2025mm) Custom-made natural anodised aluminium folding doors frame to suite drywall partition. The Multi Fold & Stack-away aluminium framed clear safety glazing to AAAMSA approved specifications. - Boardroom 1&2","Each",1,0,0]
["4.11","Supply and Install steel gate - Walkway Gate","Sum",1,0,0]
[5,"Windows to be Supplied & Installed",{"$f":"SUM(F68:F71)","v":0}]
["5.1","Male & Female Toilets\nCustom-made natural anodised aluminium window frame to suite brick wall. Clear safety glazing to AAAMSA approved specifications to suit aluminium door","Each",5,0,{"$f":"D68*E68","v":0}]
["5.2","Passage-Way 2 (Corridoor 2)\nCustom-made natural anodised aluminium window frame to suite brick wall. Clear safety glazing to AAAMSA approved specifications to suit aluminium door","Each",2,0,0]
["5.3","Tech Lab\nCustom-made natural anodised aluminium window frame to suite brick wall. Clear safety glazing to AAAMSA approved specifications to suit aluminium door","Each",4,0,0]
["5.4","Entrance/Reception\nCustom-made natural anodised aluminium window frame to suite brick wall. Clear safety glazing to AAAMSA approved specifications to suit aluminium door","Each",1,0,0]
[6,"Kitchen Units",{"$f":"SUM(F73:F81)","v":0}]
["6.1","Supply & Install new water supply pipes","Each",1,0,{"$f":"D73*E73","v":0}]
["6.2","Supply & Install Double Stainless Steel Sink","Each",1,0,0]
["6.3","Supply & Install Round Prep Sink\nØ 450 mm single bowl SS sink, no tap, c/w 38 mm waste & basket strainer.","Each",1,0,0]
["6.4","Supply & Install Kitchen Wall Units\nFactory built melamine faced chipboard carcasses (white, 16 mm) with 2 mm PVC edge band; adjustable feet; back panels 3 mm white MDF. Provide per floor: 3 m run base units, 3 m run wall units (600 mm high).","Each",1,0,0]
["6.5","Supply & Install Cabinet Hardware\nHydraulic soft close hinges: Blum Clip top 110° or equal (>50 000 cycles).","Each",1,0,0]
["6.6","Supply & Install Handles\n160 mm c c brushed SS bar pulls, 128 mm on drawer fronts per hinge / handle","Each",1,0,0]
["6.7","Supply & Install Worktops\n20 mm Caesarstone quartz (colour: Pure White), epoxy bonded joints, underside moisture seal; overhang 20 mm; polished edge. Support span ≤ 600 mm","Each",1,0,0]
["6.8","Supply & Install Tile Splashback\nCeramic Tile sheets 300 × 300 mm, fixed with C2S1 adhesive & epoxy grout. Height 600 mm above worktop along all wet walls","Each",1,0,0]
["6.9","Supply & Install Waste & Traps\nStainless steel strainer stopper waste, 90 mm, pop up plug; PP bottle trap, 40 mm PVC waste line with cleaning eye to stack.","Each",1,0,0]
[7,"HVAC Equipment",{"$f":"SUM(F83:F86)","v":0}]
["7.1","Supply & Install 18 000 BTU Cassette Unit","Each",3,0,{"$f":"D83*E83","v":0}]
["7.2","Supply & Install 24 000 BTU Cassette Unit","Each",1,0,0]
["7.3","Supply & Install 18 000 BTU Under-Ceiling Unit","Each",4,0,0]
["7.4","Supply & Install Extraction Fans for Ablution Facilities","Sum",6,0,0]
[8,"Firefighting Equipment",{"$f":"SUM(F88:F90)","v":0}]
["8.1","Fire Hose Reel\nSupply & Install aluminium nozel fixed firehose reel as per SANS 10400","Sum",1,0,{"$f":"D88*E88","v":0}]
["8.2","Fire Extinguishers\nSupply & Install 9 kg DCP Fire Extinguishers","Each",10,0,0]
["8.3","Fire Fighting Brooms\nSupply & Install Fire Fighting Brooms","Each",10,0,0]
[9,"Flooring and Roofing",{"$f":"SUM(F92:F94)","v":0}]
["9.1","Flooring in the Kitchen & Ablutions Areas\nSupply and install new charcoal (600mmx600mmx10mm) thick porcelain floor matt tile, laid with a 2mm wide grout joint","Sum",50,0,{"$f":"D92*E92","v":0}]
["9.2","Flooring in all other areas\nConstruct new Smooth Polished Concrete flooring ","Sum",250,0,0]
["9.3","Ceiling Tiles in all other areas\nSupply and install new white ceiling tiles (600x600mm) and grids drop of 600mm from the roof","Sum",300,0,0]
[10,"Tared Driveway Construction",{"$f":"SUM(F96)","v":0}]
["10.1","Driveway\nProvide, test and commission a flexible (asphalt) pavement suitable for occasional traffic by rigid-axle trucks up to 4t gross vehicle mass (GVM)","Sum",700,0,{"$f":"D96*E96","v":0}]
[11,"Clean Up",{"$f":"SUM(F98:F99)","v":0}]
["11.1","Housekeeping\nRemove all debris and surplus materials from the installation site.","Each",1,0,{"$f":"D98*E98","v":0}]
[12,"Contingency Allowance","instance",1,0,{"$f":"D99*E99","v":0}]
[null,"TOTAL BID PRICE  (EXCL VAT)",{"$nulls":3},{"$f":"C14+C33+C37+C55+C67+C72+C82+C87+C91+C95+C97","v":0}]
[null,"VAT (@15%)",{"$nulls":3},{"$f":"F100*0.15","v":0}]
[null,"TOTAL  BID PRICE (INCL VAT)",{"$nulls":3},{"$f":"F100+F101","v":0}]
[]
[]
[null,"I, the bidder, confirm that the price(s) and rate(s) quoted cover all the goods and/or works specified in the bidding documents; that the price(s) or rate(s) cover all my obligations and I accept that any mistakes regarding price(s), rate(s) or calculations will be at my own risk.\n[Note: First convert to PDF, then add signature]"]
[null,null,"Name","Capacity"]
[]
[null,null,"Signature (above)","Date"]